fUSD/lending_fUSD_20260228
["ID","MTS","AMOUNT","RATE_DAILY","PERIOD"]
[406905291,1772268651972,-668.2149842,0.00040811,28]
[406905293,1772268651983,-4108.59158549,0.00040811,28]
[406905295,1772268651991,-557.36,0.00045,30]
[406905297,1772268652000,-350.839574,0.0004883,120]
[406905299,1772268652009,-173.175025,0.0004883,120]
[406905301,1772268652017,-350.839574,0.0004883,120]
[406905302,1772268652026,-1182.6815,0.0004883,120]
[406905304,1772268652035,-1182.6815,0.0004883,120]
[406905306,1772268652043,-1182.6815,0.0004883,120]
[406905308,1772268652053,-500.0,0.00049314,120]
[406905310,1772268652061,-500.0,0.00049314,120]
[406905312,1772268652070,-450.47949939,0.00049314,120]
[406905314,1772268652081,-49.52050061,0.00049314,120]
[406905316,1772268652089,-215.18450189,0.00049314,120]
[406905646,1772268784985,500.0,9.927e-05,2]
[406905647,1772268814288,193.15,8.947e-05,2]
[406905652,1772269281886,2119.78,9.879e-05,2]
[406905654,1772269383531,220.38,9.81e-05,3]
[406905655,1772269448428,680.99,5.363e-05,2]
[406905656,1772269448619,680.99,5.594e-05,2]
[406905657,1772269448828,680.99,5.825e-05,2]
[406905658,1772269449076,680.99,6.056e-05,2]
[406905659,1772269449307,680.99,6.287e-05,2]
[406905660,1772269449485,680.99,6.517e-05,2]
[406905661,1772269449683,680.99,6.748e-05,2]
[406905662,1772269449926,680.99,6.979e-05,2]
[406905663,1772269450112,680.99,7.21e-05,2]
[406905664,1772269450306,680.99,7.441e-05,2]
[406905665,1772269450495,680.99,7.672e-05,2]
[406905666,1772269450690,680.99,7.903e-05,2]
[406905667,1772269450895,680.99,8.134e-05,2]
[406905668,1772269451088,680.99,8.365e-05,2]
[406905669,1772269451294,680.99,8.596e-05,2]
[406905670,1772269454095,680.99,8.827e-05,2]
[406905671,1772269454292,680.99,9.058e-05,2]
[406905672,1772269454485,680.99,9.289e-05,2]
[406905673,1772269454700,680.99,9.52e-05,2]
[406905674,1772269454891,680.99,9.75e-05,2]
[406906439,1772269646487,900.0,9.8e-05,3]
[406906546,1772269648605,1900.0,9.9e-05,3]
[406906617,1772269650718,2900.0,0.0001,3]
[406906623,1772269831678,-1200.0,0.0001028,2]
[406906625,1772269831690,-202.916,0.0001028,2]
[406906627,1772269831706,-156.201,0.0001028,2]
[406906629,1772269831718,-227.823,0.0001028,2]
[406906630,1772269831731,-6.177,0.0001028,2]
[406906631,1772269831743,-493.823,0.0001029,2]
[406906632,1772269831758,-363.5118641,0.0001029,2]
[406906633,1772269831768,-2500.0,0.00010294,2]
[406906634,1772269831780,-2146.21429758,0.00010333,2]
[406906635,1772269831793,-353.78570242,0.00010333,2]
[406906636,1772269831803,-1276.26281756,0.00010333,2]
[406906637,1772269831819,-555.59417147,0.00010333,2]
[406906638,1772269831833,-634.91,0.00010333,2]
[406906639,1772269831844,-33.23301097,0.00010333,2]
[406906640,1772269831854,-504.73944169,0.00010333,2]
[406906641,1772269831866,-1146.43337587,0.00010333,2]
[406906642,1772269831877,-848.82718244,0.00010333,2]
[406906643,1772269831887,-1135.95056284,0.0001037,2]
[406906644,1772269831897,-151.0,0.00010377,2]
[406906646,1772269831906,-1200.0,0.00010378,2]
[406906648,1772269831916,-150.0,0.00010379,2]
[406906650,1772269831925,-300.0,0.00010379,2]
[406906652,1772269831935,-1000.0,0.00010379,2]
[406906654,1772269831944,-11568.5445361,0.0001038,2]
[406906730,1772269837881,-573.38192822,0.0001038,2]
[406906731,1772269837893,-956.1785563,0.0001038,2]
[406906732,1772269837904,-1986901.89497938,0.0001038,2]
[406906733,1772269837914,-837.77513584,0.0001039,2]
[406906734,1772269837923,-4133.7097,0.0001039,2]
[406906735,1772269837932,-38069.47566257,0.0001048,2]
[406906736,1772269837942,-9999.99,0.00010487,2]
[406906737,1772269837951,-915.2,0.0001049,2]
[406906738,1772269837960,-29999.99,0.0001049,2]
[406906739,1772269837969,-239.1632861,0.0001049,2]
[406906740,1772269837979,-6831.74927387,0.0001049,2]
[406906741,1772269837989,-10727.81458847,0.0001049,2]
[406906742,1772269837999,-2281.15692049,0.0001049,2]
[406906743,1772269838008,-164.579,0.0001049,2]
[406906744,1772269838017,-3674.39,0.0001049,2]
[406906745,1772269838026,-9999.99,0.0001049,2]
[406906746,1772269838036,-999.99,0.0001049,2]
[406906747,1772269838046,-299.99,0.0001049,2]
[406906748,1772269838055,-150.99,0.0001049,2]
[406906749,1772269838064,-9999.99,0.0001049,2]
[406906750,1772269838073,-2219.56265454,0.000105,3]
[406906751,1772269838083,-150.99,0.000105,2]
[406906752,1772269838092,-288.1281186,0.00010563,2]
[406906753,1772269838101,-1135.95056284,0.0001058,2]
[406906754,1772269838111,-151.0,0.00010587,2]
[406906755,1772269838120,-1500000.0,0.0001059,2]
[406906756,1772269838129,-32888.5933,0.0001059,2]
[406906757,1772269838138,-1115.2546032,0.00010611,2]
[406906758,1772269838147,-211.0,0.00010611,2]
[406906759,1772269838156,-500.0,0.00010635,2]
[406906760,1772269838169,-259.96169612,0.00010635,2]
[406906761,1772269838181,-208.03686315,0.00010635,2]
[406906762,1772269838191,-1656.65059953,0.00010635,2]
[406906763,1772269838200,-500.0,0.00010635,2]
[406906764,1772269838209,-500.0,0.00010635,2]
[406906765,1772269838219,-1656.65059953,0.00010635,2]
[406906766,1772269838229,-590.38354289,0.00010635,2]
[406906767,1772269838238,-1656.65059953,0.00010635,2]
[406906768,1772269838248,-500.0,0.00010635,2]
[406906769,1772269838257,-500.0,0.00010635,2]
[406906770,1772269838266,-1656.65059953,0.00010635,2]
[406906771,1772269838275,-500.0,0.00010635,2]
[406906772,1772269838285,-316.7905715,0.00010635,2]
[406906773,1772269838295,-1656.65059953,0.00010635,2]
[406906774,1772269838309,-1656.65059953,0.00010635,2]
[406906775,1772269838319,-500.0,0.00010635,2]
[406906776,1772269838328,-1656.65059953,0.00010635,2]
[406906777,1772269838338,-500.0,0.00010635,2]
[406906778,1772269838347,-1656.65059953,0.00010635,2]
[406906779,1772269838356,-1656.65059953,0.00010635,2]
[406906780,1772269838366,-500.0,0.00010635,2]
[406906781,1772269838375,-1656.65059953,0.00010635,2]
[406906782,1772269838384,-1656.65059953,0.00010635,2]
[406906783,1772269838394,-1656.65059953,0.00010635,2]
[406906784,1772269838403,-1656.65059953,0.00010635,2]
[406906785,1772269838412,-1656.65059953,0.00010635,2]
[406906786,1772269838422,-1656.65059953,0.00010635,2]
[406906787,1772269838431,-1656.65059953,0.00010635,2]
[406906788,1772269838440,-1656.65059953,0.00010635,2]
[406906789,1772269838450,-1656.65059953,0.00010635,2]
[406906790,1772269838459,-1656.65059953,0.00010635,2]
[406906791,1772269838469,-1656.65059953,0.00010635,2]
[406906792,1772269838480,-1656.65059953,0.00010635,2]
[406906793,1772269838490,-1656.65059953,0.00010635,2]
[406906794,1772269838499,-1656.65059953,0.00010635,2]
[406906795,1772269838510,-1656.65059953,0.00010635,2]
[406906796,1772269838519,-1656.65059953,0.00010635,2]
[406906797,1772269838529,-1656.65059953,0.00010635,2]
[406906798,1772269838538,-1656.65059953,0.00010635,2]
[406906799,1772269838548,-1656.65059953,0.00010635,2]
[406906800,1772269838558,-1656.65059953,0.00010635,2]
[406906801,1772269838567,-1656.65059953,0.00010635,2]
[406906802,1772269838577,-1656.65059953,0.00010635,2]
[406906803,1772269838587,-1656.65059953,0.00010635,2]
[406906804,1772269838597,-1656.65059953,0.00010635,2]
[406906805,1772269838606,-1656.65059953,0.00010635,2]
[406906806,1772269838616,-1656.65059953,0.00010635,2]
[406906807,1772269838627,-1656.65059953,0.00010635,2]
[406906808,1772269838637,-1656.65059953,0.00010635,2]
[406906809,1772269838646,-1656.65059953,0.00010635,2]
[406906810,1772269838655,-1656.65059953,0.00010635,2]
[406906811,1772269838665,-1656.65059953,0.00010635,2]
[406906812,1772269838674,-1656.65059953,0.00010635,2]
[406906813,1772269838684,-1656.65059953,0.00010635,2]
[406906814,1772269838695,-1656.65059953,0.00010635,2]
[406906815,1772269838705,-1656.65059953,0.00010635,2]
[406906816,1772269838715,-1656.65059953,0.00010635,2]
[406906817,1772269838725,-1656.65059953,0.00010635,2]
[406906818,1772269838735,-1656.65059953,0.00010635,2]
[406906819,1772269838748,-1656.65059953,0.00010635,2]
[406906820,1772269838757,-1656.65059953,0.00010635,2]
[406906821,1772269838767,-1656.65059953,0.00010635,2]
[406906822,1772269838777,-1656.65059953,0.00010635,2]
[406906823,1772269838787,-1656.65059953,0.00010635,2]
[406906824,1772269838796,-1656.65059953,0.00010635,2]
[406906825,1772269838806,-1656.65059953,0.00010635,2]
[406906826,1772269838816,-1656.65059953,0.00010635,2]
[406906827,1772269838826,-1656.65059953,0.00010635,2]
[406906828,1772269838835,-1656.65059953,0.00010635,2]
[406906829,1772269838844,-1656.65059953,0.00010635,2]
[406906830,1772269838854,-1656.65059953,0.00010635,2]
[406906831,1772269838864,-1656.65059953,0.00010635,2]
[406906832,1772269838873,-1656.65059953,0.00010635,2]
[406906833,1772269838882,-1656.65059953,0.00010635,2]
[406906834,1772269838891,-1605.67673493,0.00010635,2]
[406906835,1772269838901,-1605.67673493,0.00010635,2]
[406906836,1772269838911,-1605.67673493,0.00010635,2]
[406906837,1772269838921,-1605.67673493,0.00010635,2]
[406906838,1772269838932,-1605.67673493,0.00010635,2]
[406906839,1772269838942,-1605.67673493,0.00010635,2]
[406906840,1772269838952,-1605.67673493,0.00010635,2]
[406906841,1772269838962,-1605.67673493,0.00010635,2]
[406906842,1772269838972,-1605.67673493,0.00010635,2]
[406906843,1772269838985,-1605.67673493,0.00010635,2]
[406906844,1772269838994,-1605.67673493,0.00010635,2]
[406906845,1772269839003,-1605.67673493,0.00010635,2]
[406906846,1772269839011,-1605.67673493,0.00010635,2]
[406906847,1772269839020,-1605.67673493,0.00010635,2]
[406906848,1772269839029,-1605.67673493,0.00010635,2]
[406906849,1772269839202,-1605.67673493,0.00010635,2]
[406906850,1772269839212,-1605.67673493,0.00010635,2]
[406906851,1772269839222,-1605.67673493,0.00010635,2]
[406906852,1772269839233,-1605.67673493,0.00010635,2]
[406906853,1772269839242,-1605.67673493,0.00010635,2]
[406906854,1772269839251,-1605.67673493,0.00010635,2]
[406906855,1772269839260,-1605.67673493,0.00010635,2]
[406906856,1772269839270,-1605.67673493,0.00010635,2]
[406906857,1772269839279,-1605.67673493,0.00010635,2]
[406906858,1772269839288,-1605.67673493,0.00010635,2]
[406906859,1772269839297,-1605.67673493,0.00010635,2]
[406906860,1772269839306,-278167.56697974,0.00010636,2]
[406906861,1772269839315,-151.0,0.00010664,2]
[406906862,1772269839324,-1432.9404196,0.00010689,3]
[406906863,1772269839334,-1432.94041959,0.00010689,3]
[406906864,1772269839347,-1000.0,0.000107,2]
[406906865,1772269839357,-166.66,0.0001074,2]
[406906866,1772269839366,-3800.0,0.000108,3]
[406906867,1772269839376,-4800.0,0.000109,3]
[406906868,1772269839385,-3899.95466395,0.000109,2]
[406906869,1772269839395,-500.0,0.00010909,2]
[406906870,1772269839404,-150.0,0.00010959,2]
[406906871,1772269839414,-150.0,0.00010959,2]
[406906872,1772269839423,-1823.06674367,0.00011072,2]
[406906873,1772269839433,-166.66,0.00011095,2]
[406906874,1772269839442,-16004.34020984,0.00011099,2]
[406906875,1772269839451,-7138.88469734,0.00011099,2]
[406906876,1772269839462,-7138.88469725,0.00011134,2]
[406906877,1772269839472,-16004.34020981,0.00011135,2]
[406906878,1772269839484,-500.0,0.00011183,2]
[406906879,1772269839495,-1786.27675736,0.00011201,2]
[406906880,1772269839505,-186.17,0.00011233,2]
[406906881,1772269839514,-3324.19795968,0.00011283,2]
[406906882,1772269839526,-253.38503941,0.00011308,2]
[406906883,1772269839535,-500.0,0.00011308,2]
[406906884,1772269839544,-500.0,0.00011308,2]
[406906885,1772269839554,-500.0,0.00011308,2]
[406906886,1772269839563,-500.0,0.00011308,2]
[406906887,1772269839572,-500.0,0.00011308,2]
[406906888,1772269839582,-2500.0,0.00011308,2]
[406906889,1772269839592,-3899.95466388,0.00011375,2]
[406906890,1772269839601,-255.0,0.00011396,2]
[406906891,1772269839611,-1680.0,0.00011416,2]
[406906892,1772269839621,-166.66,0.00011449,2]
[406906893,1772269839630,-242.90752003,0.00011457,2]
[406906894,1772269839640,-837.77513583,0.00011642,2]
[406906895,1772269839649,-166.66,0.00011804,2]
[406906896,1772269839659,-7138.88469725,0.0001198,2]
[406906897,1772269839669,-16004.34020981,0.0001198,2]
[406906898,1772269839679,-166.66,0.00012159,2]
[406906899,1772269839689,-3899.95466388,0.00012463,2]
[406906900,1772269839699,-166.66,0.00012513,2]
[406906901,1772269839709,-433.0,0.00012517,2]
[406906902,1772269839719,-2351.0,0.00012557,2]
[406906903,1772269839730,-7138.88469725,0.00012825,2]
[406906904,1772269839742,-16004.34020981,0.00012826,2]
[406906905,1772269839761,-837.77513583,0.00012893,2]
[406906906,1772269839771,-456.97377821,0.00013,15]
[406906907,1772269839781,-157.22,0.000133,2]
[406906908,1772269839792,-3899.95466388,0.0001355,2]
[406906909,1772269839802,-250.0,0.00013583,2]
[406906910,1772269839811,-7138.88469725,0.00013671,2]
[406906911,1772269839821,-16004.34020981,0.00013672,2]
[406906912,1772269839831,-500.0,0.00013697,2]
[406906913,1772269839841,-500.0,0.00013697,2]
[406906914,1772269839851,-500.0,0.00013697,2]
[406906915,1772269839861,-193.29994984,0.00013697,2]
[406906916,1772269839870,-500.0,0.00013698,2]
[406906917,1772269839880,-500.0,0.00013698,2]
[406906918,1772269839890,-500.0,0.00013698,2]
[406906919,1772269839900,-500.0,0.00013698,2]
[406906920,1772269839910,-500.0,0.00013698,2]
[406906921,1772269839919,-500.0,0.00013698,2]
[406906922,1772269839928,-500.0,0.00013698,2]
[406906923,1772269839938,-500.0,0.00013698,2]
[406906924,1772269839947,-500.0,0.00013698,2]
[406906925,1772269839957,-270.1160722,0.00013698,2]
[406906926,1772269839967,-500.0,0.00013698,2]
[406906927,1772269839978,-500.0,0.00013698,2]
[406906928,1772269839987,-500.0,0.00013698,2]
[406906929,1772269839996,-500.0,0.00013698,2]
[406906930,1772269840005,-500.0,0.00013698,2]
[406906931,1772269840014,-500.0,0.00013698,2]
[406906932,1772269840024,-500.0,0.00013698,2]
[406906933,1772269840034,-500.0,0.00013698,2]
[406906934,1772269840043,-500.0,0.00013698,2]
[406906935,1772269840053,-500.0,0.00013698,2]
[406906936,1772269840063,-500.0,0.00013698,2]
[406906937,1772269840072,-500.0,0.00013698,2]
[406906938,1772269840082,-500.0,0.00013698,2]
[406906939,1772269840092,-500.0,0.00013698,2]
[406906940,1772269840111,-500.0,0.00013698,2]
[406906941,1772269840137,-500.0,0.00013698,2]
[406906942,1772269840161,-500.0,0.00013698,2]
[406906943,1772269840176,-500.0,0.00013698,2]
[406906944,1772269840186,-500.0,0.00013698,2]
[406906945,1772269840195,-500.0,0.00013698,2]
[406906946,1772269840205,-500.0,0.00013698,2]
[406906947,1772269840214,-500.0,0.00013698,2]
[406906948,1772269840224,-500.0,0.00013698,2]
[406906949,1772269840234,-500.0,0.00013698,2]
[406906950,1772269840243,-500.0,0.00013698,2]
[406906951,1772269840252,-500.0,0.00013698,2]
[406906952,1772269840262,-500.0,0.00013698,2]
[406906953,1772269840271,-500.0,0.00013698,2]
[406906954,1772269840281,-500.0,0.00013698,2]
[406906955,1772269840292,-500.0,0.00013698,2]
[406906956,1772269840302,-500.0,0.00013698,2]
[406906957,1772269840311,-500.0,0.00013698,2]
[406906958,1772269840320,-500.0,0.00013698,2]
[406906959,1772269840330,-500.0,0.00013698,2]
[406906960,1772269840339,-500.0,0.00013698,2]
[406906961,1772269840348,-500.0,0.00013698,2]
[406906962,1772269840357,-483.13999169,0.00013698,2]
[406906963,1772269840367,-500.0,0.00013698,2]
[406906964,1772269840376,-500.0,0.00013698,2]
[406906965,1772269840385,-500.0,0.00013698,2]
[406906966,1772269840395,-500.0,0.00013698,2]
[406906967,1772269840405,-500.0,0.00013698,2]
[406906968,1772269840414,-500.0,0.00013698,2]
[406906969,1772269840424,-500.0,0.00013698,2]
[406906970,1772269840434,-500.0,0.00013698,2]
[406906971,1772269840443,-500.0,0.00013698,2]
[406906972,1772269840452,-500.0,0.00013698,2]
[406906973,1772269840462,-500.0,0.00013698,2]
[406906974,1772269840471,-500.0,0.00013698,2]
[406906975,1772269840482,-500.0,0.00013698,2]
[406906976,1772269840493,-500.0,0.00013698,2]
[406906977,1772269840502,-500.0,0.00013698,2]
[406906978,1772269840513,-219.67514616,0.00013698,2]
[406906979,1772269840522,-595.16967246,0.00013698,2]
[406906980,1772269840531,-500.0,0.00013698,2]
[406906981,1772269840540,-624.58042463,0.00013698,2]
[406906982,1772269840550,-500.0,0.00013698,2]
[406906983,1772269840559,-500.0,0.00013698,2]
[406906984,1772269840569,-500.0,0.00013698,2]
[406906985,1772269840578,-500.0,0.00013698,2]
[406906986,1772269840587,-500.0,0.00013698,2]
[406906987,1772269840596,-500.0,0.00013698,2]
[406906988,1772269840605,-500.0,0.00013698,2]
[406906989,1772269840614,-500.0,0.00013698,2]
[406906990,1772269840623,-500.0,0.00013698,2]
[406906991,1772269840632,-500.0,0.00013698,2]
[406906992,1772269840641,-605.17948879,0.00013698,2]
[406906993,1772269840651,-500.0,0.00013698,2]
[406906994,1772269840660,-500.0,0.00013698,2]
[406906995,1772269840669,-500.0,0.00013698,2]
[406906996,1772269840679,-500.0,0.00013698,2]
[406906997,1772269840688,-500.0,0.00013698,2]
[406906998,1772269840697,-500.0,0.00013698,2]
[406906999,1772269840707,-500.0,0.00013698,2]
[406907000,1772269840716,-500.0,0.00013698,2]
[406907001,1772269840726,-500.0,0.00013698,2]
[406907002,1772269840736,-500.0,0.00013698,2]
[406907003,1772269840748,-500.0,0.00013698,2]
[406907004,1772269840759,-615.12,0.00013698,2]
[406907005,1772269840769,-615.12,0.00013698,2]
[406907006,1772269840779,-615.12,0.00013698,2]
[406907007,1772269840791,-615.12,0.00013698,2]
[406907009,1772269840801,-615.12,0.00013698,2]
[406907010,1772269840810,-615.12,0.00013698,2]
[406907011,1772269840823,-615.12,0.00013698,2]
[406907012,1772269840832,-615.12,0.00013698,2]
[406907013,1772269840841,-615.12,0.00013698,2]
[406907014,1772269840850,-615.12,0.00013698,2]
[406907015,1772269840859,-615.12,0.00013698,2]
[406907016,1772269840868,-615.12,0.00013698,2]
[406907017,1772269840877,-615.12,0.00013698,2]
[406907018,1772269840887,-615.12,0.00013698,2]
[406907019,1772269840898,-615.12,0.00013698,2]
[406907020,1772269840907,-615.12,0.00013698,2]
[406907021,1772269840916,-500.0,0.00013698,2]
[406907022,1772269840925,-500.0,0.00013698,2]
[406907023,1772269840934,-500.0,0.00013698,2]
[406907024,1772269840943,-500.0,0.00013698,2]
[406907025,1772269840952,-500.0,0.00013698,2]
[406907026,1772269840962,-500.0,0.00013698,2]
[406907027,1772269840971,-500.0,0.00013698,2]
[406907028,1772269840982,-393.27599865,0.00013698,2]
[406907029,1772269840993,-500.0,0.00013698,2]
[406907030,1772269841002,-500.0,0.00013698,2]
[406907031,1772269841011,-500.0,0.00013698,2]
[406907032,1772269841021,-500.0,0.00013698,2]
[406907033,1772269841030,-161.88293327,0.00013698,2]
[406907034,1772269841039,-500.0,0.00013698,2]
[406907035,1772269841048,-500.0,0.00013698,2]
[406907036,1772269841058,-500.0,0.00013698,2]
[406907037,1772269841067,-500.0,0.00013698,2]
[406907038,1772269841077,-500.0,0.00013698,2]
[406907039,1772269841087,-500.0,0.00013698,2]
[406907040,1772269841097,-500.0,0.00013698,2]
[406907041,1772269841107,-329.64340271,0.00013698,2]
[406907042,1772269841117,-500.0,0.00013698,2]
[406907043,1772269841127,-500.0,0.00013698,2]
[406907044,1772269841136,-500.0,0.00013698,2]
[406907045,1772269841145,-500.0,0.00013698,2]
[406907046,1772269841155,-500.0,0.00013698,2]
[406907047,1772269841164,-500.0,0.00013698,2]
[406907048,1772269841172,-500.0,0.00013698,2]
[406907049,1772269841181,-500.0,0.00013698,2]
[406907050,1772269841191,-500.0,0.00013698,2]
[406907051,1772269841200,-500.0,0.00013698,2]
[406907052,1772269841209,-500.0,0.00013698,2]
[406907053,1772269841219,-1080.39,0.00013698,2]
[406907054,1772269841229,-500.0,0.00013698,2]
[406907055,1772269841239,-1080.39,0.00013698,2]
[406907056,1772269841248,-500.0,0.00013698,2]
[406907057,1772269841257,-1080.39,0.00013698,2]
[406907058,1772269841267,-500.0,0.00013698,2]
[406907059,1772269841276,-290.04213309,0.00013698,2]
[406907060,1772269841285,-1080.39,0.00013698,2]
[406907061,1772269841295,-1080.39,0.00013698,2]
[406907062,1772269841304,-1080.39,0.00013698,2]
[406907063,1772269841313,-1080.39,0.00013698,2]
[406907064,1772269841323,-1080.39,0.00013698,2]
[406907065,1772269841332,-1080.39,0.00013698,2]
[406907066,1772269841342,-1080.39,0.00013698,2]
[406907067,1772269841351,-1080.39,0.00013698,2]
[406907068,1772269841359,-1080.39,0.00013698,2]
[406907069,1772269841369,-1080.39,0.00013698,2]
[406907070,1772269841378,-1080.39,0.00013698,2]
[406907071,1772269841387,-1080.39,0.00013698,2]
[406907072,1772269841396,-1080.39,0.00013698,2]
[406907073,1772269841406,-500.0,0.00013698,2]
[406907074,1772269841415,-500.0,0.00013698,2]
[406907075,1772269841424,-500.0,0.00013698,2]
[406907076,1772269841433,-500.0,0.00013698,2]
[406907077,1772269841443,-500.0,0.00013698,2]
[406907078,1772269841452,-500.0,0.00013698,2]
[406907079,1772269841461,-500.0,0.00013698,2]
[406907080,1772269841470,-500.0,0.00013698,2]
[406907081,1772269841481,-500.0,0.00013698,2]
[406907082,1772269841491,-500.0,0.00013698,2]
[406907083,1772269841499,-648.3262986,0.00013698,2]
[406907084,1772269841509,-500.0,0.00013698,2]
[406907085,1772269841518,-500.0,0.00013698,2]
[406907086,1772269841526,-500.0,0.00013698,2]
[406907087,1772269841535,-500.0,0.00013698,2]
[406907088,1772269841544,-500.0,0.00013698,2]
[406907089,1772269841553,-500.0,0.00013698,2]
[406907090,1772269841566,-500.0,0.00013698,2]
[406907091,1772269841575,-500.0,0.00013698,2]
[406907092,1772269841584,-500.0,0.00013698,2]
[406907093,1772269841592,-512.80115338,0.00013698,2]
[406907094,1772269841602,-500.0,0.00013698,2]
[406907095,1772269841610,-500.0,0.00013698,2]
[406907096,1772269841619,-500.0,0.00013698,2]
[406907097,1772269841628,-500.0,0.00013698,2]
[406907098,1772269841637,-500.0,0.00013698,2]
[406907099,1772269841646,-439.79063626,0.00013698,2]
[406907100,1772269841656,-500.0,0.00013698,2]
[406907101,1772269841664,-500.0,0.00013698,2]
[406907102,1772269841673,-500.0,0.00013698,2]
[406907103,1772269841682,-500.0,0.00013698,2]
[406907104,1772269841691,-500.0,0.00013698,2]
[406907105,1772269841700,-500.0,0.00013698,2]
[406907106,1772269841709,-601.46010123,0.00013698,2]
[406907107,1772269841718,-500.0,0.00013698,2]
[406907108,1772269841727,-440.49444221,0.00013698,2]
[406907109,1772269841737,-500.0,0.00013698,2]
[406907110,1772269841751,-500.0,0.00013698,2]
[406907111,1772269841760,-500.0,0.00013698,2]
[406907112,1772269841769,-500.0,0.00013698,2]
[406907113,1772269841778,-500.0,0.00013698,2]
[406907114,1772269841790,-500.0,0.00013698,2]
[406907115,1772269841799,-500.0,0.00013698,2]
[406907116,1772269841809,-500.0,0.00013698,2]
[406907117,1772269841819,-500.0,0.00013698,2]
[406907118,1772269841828,-500.0,0.00013698,2]
[406907119,1772269841837,-500.0,0.00013698,2]
[406907120,1772269841846,-500.0,0.00013698,2]
[406907121,1772269841855,-500.0,0.00013698,2]
[406907122,1772269841865,-500.0,0.00013698,2]
[406907123,1772269841874,-500.0,0.00013698,2]
[406907124,1772269841883,-500.0,0.00013698,2]
[406907125,1772269841891,-508.5684283,0.00013698,2]
[406907126,1772269841900,-500.0,0.00013698,2]
[406907127,1772269841910,-500.0,0.00013698,2]
[406907128,1772269841919,-500.0,0.00013698,2]
[406907129,1772269841928,-500.0,0.00013698,2]
[406907130,1772269841937,-500.0,0.00013698,2]
[406907131,1772269841946,-500.0,0.00013698,2]
[406907132,1772269841955,-500.0,0.00013698,2]
[406907133,1772269841964,-500.0,0.00013698,2]
[406907134,1772269841973,-500.0,0.00013698,2]
[406907135,1772269841983,-500.0,0.00013698,2]
[406907136,1772269841992,-500.0,0.00013698,2]
[406907137,1772269842001,-500.0,0.00013698,2]
[406907138,1772269842012,-500.0,0.00013698,2]
[406907139,1772269842022,-500.0,0.00013698,2]
[406907140,1772269842031,-500.0,0.00013698,2]
[406907141,1772269842040,-500.0,0.00013698,2]
[406907142,1772269842049,-789.19,0.00013698,2]
[406907143,1772269842057,-789.19,0.00013698,2]
[406907144,1772269842066,-789.19,0.00013698,2]
[406907145,1772269842075,-789.19,0.00013698,2]
[406907146,1772269842084,-789.19,0.00013698,2]
[406907147,1772269842093,-789.19,0.00013698,2]
[406907148,1772269842102,-789.19,0.00013698,2]
[406907149,1772269842112,-789.19,0.00013698,2]
[406907150,1772269842121,-789.19,0.00013698,2]
[406907151,1772269842130,-789.19,0.00013698,2]
[406907152,1772269842140,-789.19,0.00013698,2]
[406907153,1772269842149,-789.19,0.00013698,2]
[406907154,1772269842158,-789.19,0.00013698,2]
[406907155,1772269842167,-789.19,0.00013698,2]
[406907156,1772269842176,-789.19,0.00013698,2]
[406907157,1772269842186,-789.19,0.00013698,2]
[406907158,1772269842195,-500.0,0.00013698,2]
[406907159,1772269842205,-500.0,0.00013698,2]
[406907160,1772269842215,-500.0,0.00013698,2]
[406907161,1772269842225,-500.0,0.00013698,2]
[406907162,1772269842235,-500.0,0.00013698,2]
[406907163,1772269842244,-500.0,0.00013698,2]
[406907164,1772269842254,-500.0,0.00013698,2]
[406907165,1772269842263,-500.0,0.00013698,2]